bitfinex-derivatives/quotes_ETHF0:USTF0_20250331
["timestamp","ask_amount","ask_price","bid_price","bid_amount"]
[1743431133620,1.10552068,1823.0,1822.9,1.09735]
[1743431133809,1.09737,1822.9,1822.8,1.09736]
[1743431134011,1.09736,1822.9,1822.8,1.09735]
[1743431134814,1.10557068,1823.0,1822.9,1.09735]
[1743431135717,0.00823068,1823.0,1822.9,1.09735]
[1743431135917,1.10552068,1823.0,1822.9,1.09735]
[1743431136119,0.00823068,1823.0,1822.9,1.09735]
[1743431136321,1.10552068,1823.0,1822.9,1.09735]
[1743431136720,0.00823068,1823.0,1822.9,1.09735]
[1743431137316,1.10552068,1823.0,1822.9,1.09735]
[1743431137608,2.61442068,1823.0,1822.9,1.09735]
[1743431139421,1.09741,1822.8,1822.7,5.05771]
[1743431139922,4.26039068,1823.0,1822.8,1.09736]
[1743431139923,1.09739,1822.9,1822.8,1.09736]
[1743431140123,1.09741,1822.8,1822.7,5.05773]
[1743431140617,1.09741,1822.8,1822.7,3.9603]
[1743431140823,1.09759,1822.5,1822.4,3.2078]
[1743431141216,1.09759,1822.5,1822.4,4.30545]
[1743431142118,2.46847,1822.6,1822.5,1.09759]
[1743431142518,0.7965,1822.9,1822.6,2.74378]
[1743431142720,3.26481,1822.9,1822.8,1.09741]
[1743431143223,1.09743,1822.8,1822.7,1.09741]
[1743431143623,2.46825,1822.9,1822.8,1.09741]
[1743431144213,1.09743,1822.8,1822.7,1.09741]
[1743431144822,2.46832,1822.9,1822.8,1.09741]
[1743431145026,2.46832,1822.9,1822.6,4.715]
[1743431145027,1.09746,1822.8,1822.6,4.715]
[1743431145221,1.09747,1822.7,1822.6,5.08713]
[1743431145425,1.09747,1822.7,1822.6,3.9896]
[1743431145725,1.09747,1822.7,1822.6,0.7818]
[1743431145926,2.50807,1822.7,1822.6,0.7818]
[1743431146127,2.50807,1822.7,1822.6,2.2284]
[1743431146328,1.09753,1822.6,1822.5,1.09754]
[1743431146624,2.50813,1822.6,1822.5,1.4466]
[1743431147028,1.4106,1822.6,1822.5,2.54419]
[1743431147525,1.83174,1822.8,1822.7,1.09747]
[1743431147723,1.09749,1822.7,1822.6,1.09748]
[1743431147924,2.50809,1822.7,1822.6,1.09748]
[1743431148329,1.09753,1822.6,1822.5,2.54415]
[1743431148523,2.50813,1822.6,1822.5,2.54415]
[1743431149319,1.09759,1822.5,1822.4,4.30542]
[1743431149629,1.3685,1822.5,1822.4,5.75532]
[1743431149826,2.46609,1822.5,1822.4,5.75532]
[1743431150333,2.46609,1822.5,1822.4,4.6577]
[1743431152328,2.46609,1822.5,1822.4,5.75535]
[1743431152530,1.3685,1822.5,1822.4,5.75535]
[1743431152741,2.46609,1822.5,1822.2,0.00823068]
[1743431153033,1.09771,1822.3,1822.2,1.10600068]
[1743431153625,2.60021,1822.3,1822.2,1.10600068]
[1743431153826,2.60021,1822.3,1822.2,2.48410068]
[1743431154235,1.09771,1822.3,1822.2,3.24140068]
[1743431154431,1.09771,1822.3,1822.2,6.44920068]
[1743431154633,1.09758,1822.6,1822.5,1.09753]
[1743431155334,1.09745,1822.8,1822.7,1.09747]
[1743431155730,3.3453,1822.9,1822.8,1.09741]
[1743431156029,3.3453,1822.9,1822.8,2.60951]
[1743431156231,0.00823068,1823.0,1822.9,1.09735]
[1743431156439,0.00823068,1823.0,1822.9,5.81725]
[1743431157231,0.00823068,1823.0,1822.9,8.31725]
[1743431157631,2.61154,1823.3,1823.2,1.09716]
[1743431158130,1.09722,1823.1,1823.0,0.7412]
[1743431158334,1.09722,1823.1,1822.9,5.81723]
[1743431158335,1.09729,1823.0,1822.9,3.2078]
[1743431158638,6.112,1823.0,1822.2,0.00823068]
[1743431158831,2.74385,1822.6,1822.2,1.84714068]
[1743431159137,1.09765,1822.4,1822.3,4.30547]
[1743431159332,1.0977,1822.4,1822.2,1.84715068]
[1743431159535,1.09771,1822.3,1822.2,0.74943068]
[1743431159737,1.399,1822.5,1822.2,0.74943068]
[1743431159937,2.49663,1822.5,1822.4,1.09765]
[1743431160143,1.399,1822.5,1822.3,4.30546]
[1743431160342,1.09753,1822.6,1822.3,3.2078]
[1743431160531,1.399,1822.7,1822.5,1.09757]
[1743431160738,1.399,1822.7,1822.3,3.2078]
[1743431160936,1.09739,1822.9,1822.8,1.09741]
[1743431161136,1.4397,1823.0,1822.9,1.09733]
[1743431161634,1.09741,1822.8,1822.7,5.03443]
[1743431161836,1.4397,1823.0,1822.8,1.09736]
[1743431162037,1.4397,1823.0,1822.7,3.937]
[1743431162038,1.10547068,1823.1,1822.7,6.68066]
[1743431162235,1.10547068,1823.1,1823.0,1.09729]
[1743431162236,0.00823068,1823.1,1823.0,1.09729]
[1743431162440,0.00823068,1823.1,1823.0,1.81229]
[1743431164135,1.10545068,1823.1,1823.0,0.715]
[1743431164338,0.00823068,1823.1,1823.0,1.81229]
[1743431164736,2.59995068,1823.1,1823.0,0.715]
[1743431164938,2.59995068,1823.1,1823.0,1.81229]
[1743431165138,1.50273068,1823.1,1823.0,1.81229]
[1743431165336,0.00823068,1823.1,1823.0,1.81229]
[1743431165746,1.10545068,1823.1,1823.0,1.81229]
[1743431166645,0.00823068,1823.1,1823.0,1.81229]
[1743431167634,2.49354,1823.6,1823.1,2.74293]
[1743431167838,1.09699,1823.5,1823.3,3.2078]
[1743431168136,1.09704,1823.4,1823.3,4.30488]
[1743431168340,1.09704,1823.4,1823.3,3.2078]
[1743431168547,1.09704,1823.4,1823.3,1.0971]
[1743431168739,1.10520239,1823.5,1823.4,1.09699]
[1743431169146,1.10522239,1823.5,1823.4,1.09704]
[1743431169347,1.09708,1823.4,1823.3,1.09709]
[1743431169747,1.0971,1823.3,1823.2,0.00823068]
[1743431169950,5.0167,1823.3,1823.2,0.00823068]
[1743431170445,1.8089,1823.3,1823.2,0.00823068]
[1743431170646,1.3966,1823.4,1823.3,1.0971]
[1743431170845,1.09708,1823.4,1823.2,0.00823068]
[1743431171148,1.10522239,1823.5,1823.4,1.09704]
[1743431171350,1.09706,1823.4,1823.3,1.09706]
[1743431171647,0.00819239,1823.5,1823.4,1.09704]
[1743431172036,1.09704,1823.4,1823.3,9.01286]
[1743431172243,1.0971,1823.3,1823.2,0.69503068]
[1743431172547,2.6004,1823.3,1823.2,1.79219068]
[1743431172742,2.6004,1823.3,1823.2,0.69503068]
[1743431172944,2.6004,1823.3,1823.2,1.79219068]
[1743431172945,1.5033,1823.3,1823.2,1.79219068]
[1743431173249,1.81969,1823.4,1823.3,1.0971]
[1743431173444,0.00819239,1823.5,1823.2,1.79215068]
[1743431173649,1.09706,1823.4,1823.3,1.09706]
[1743431173846,2.55372239,1823.5,1823.4,1.09704]
[1743431174053,0.00819239,1823.5,1823.4,1.09704]
[1743431174544,0.00819239,1823.5,1823.3,3.2078]
[1743431174751,1.10523239,1823.5,1823.4,1.09704]
[1743431174950,1.09704,1823.4,1823.3,3.2078]
[1743431175150,2.55372239,1823.5,1823.4,1.09704]
[1743431175352,1.0971,1823.3,1823.2,1.79216068]
[1743431175553,1.2491,1823.3,1823.2,2.07633068]
[1743431175754,4.4569,1823.3,1823.2,0.00823068]
[1743431175947,2.74302,1823.2,1822.9,1.09733]
[1743431176148,3.3598,1823.3,1822.9,4.707]
[1743431176354,1.09717,1823.2,1823.0,4.6977]
[1743431176557,1.09717,1823.2,1823.1,0.94518]
[1743431176750,0.7168,1823.4,1823.0,7.4409]
[1743431176949,3.28448,1823.4,1823.3,1.0971]
[1743431177350,1.4706,1823.4,1823.3,1.0971]
[1743431177646,1.10523239,1823.5,1823.4,1.09704]
[1743431177851,1.10523239,1823.5,1823.4,4.30484]
[1743431178051,1.10523239,1823.5,1823.4,3.2078]
[1743431178347,1.10523239,1823.5,1823.4,2.58694]
[1743431178553,0.00819239,1823.5,1823.4,5.79474]
[1743431179255,1.10517239,1823.5,1823.4,1.4899]
[1743431179449,1.10517239,1823.5,1823.4,2.58694]
[1743431179652,0.00819239,1823.5,1823.4,2.58694]
[1743431179858,0.00819239,1823.5,1823.4,5.79474]
[1743431180358,1.10517239,1823.5,1823.4,2.58694]
[1743431180955,1.0971,1823.3,1823.2,3.9469]
[1743431181158,1.0971,1823.3,1823.2,2.1984]
[1743431181454,1.09722,1823.1,1823.0,0.00823068]
[1743431181660,5.95093,1823.1,1822.6,0.7381]
[1743431181860,1.09741,1822.8,1822.7,1.4593]
[1743431182260,1.09759,1822.5,1822.4,0.7223]
[1743431182460,1.09781,1822.2,1822.1,3.2078]
[1743431182762,1.09781,1822.2,1822.1,1.09783]
[1743431183066,0.00823068,1822.3,1822.2,1.09774]
[1743431183360,1.10595068,1822.3,1822.0,0.00823068]
[1743431183558,1.09777,1822.2,1822.0,2.56547068]
[1743431183763,1.4439,1822.1,1822.0,7.26947068]
[1743431184167,0.00823068,1822.3,1822.1,1.0978]
[1743431184361,1.45213068,1822.3,1822.2,2.55717]
[1743431184856,0.00823068,1822.3,1822.2,2.55717]
[1743431185064,0.00823068,1822.3,1822.2,3.28907]
[1743431185454,0.7103,1822.8,1822.3,2.74412]
[1743431185659,1.80771,1822.8,1822.7,1.09747]
[1743431185857,3.19851,1822.8,1822.7,1.09747]
[1743431186366,1.09747,1822.7,1822.6,1.501]
[1743431186667,2.48827,1822.7,1822.6,1.501]
[1743431186862,7.34228,1822.7,1822.2,3.9397]
[1743431187168,1.09771,1822.3,1822.2,5.03745]
[1743431187354,4.13453,1822.7,1822.2,3.9397]
[1743431187560,4.13453,1822.7,1822.3,1.501]
[1743431187561,1.09765,1822.4,1822.3,1.501]
[1743431187862,4.13453,1822.7,1822.2,0.7319]
[1743431187863,1.09771,1822.3,1822.2,0.7319]
[1743431188165,1.09783,1822.1,1822.0,4.31387068]
[1743431188365,1.09781,1822.2,1822.1,1.09783]
[1743431188562,1.09783,1822.1,1822.0,0.00823068]
[1743431189159,4.30563,1822.1,1822.0,0.00823068]
[1743431189360,1.09783,1822.1,1822.0,0.00823068]
[1743431189966,5.00243,1822.1,1822.0,0.00823068]
[1743431190559,4.30563,1822.1,1822.0,0.00823068]
[1743431191365,4.30563,1822.1,1822.0,2.58272068]
[1743431191674,4.30563,1822.1,1822.0,1.48483068]
[1743431191866,1.5083,1822.2,1822.0,1.48483068]
[1743431192068,4.704,1822.5,1822.1,5.95237]
[1743431192069,5.80161,1822.5,1822.1,5.95237]
[1743431192373,2.60455,1822.6,1822.2,4.22099]
[1743431192668,1.09751,1822.7,1822.6,1.09753]
[1743431192868,1.507,1822.8,1822.5,3.2078]
[1743431193077,1.507,1822.8,1822.6,1.4766]
[1743431193370,1.09747,1822.7,1822.6,1.4766]
[1743431193572,4.25056,1822.8,1822.3,3.9378]
[1743431193773,1.09765,1822.4,1822.3,3.9378]
[1743431193971,1.09765,1822.4,1822.3,5.4144]
[1743431194276,1.09765,1822.4,1822.3,2.2066]
[1743431196073,2.59695,1822.4,1822.3,3.30431]
[1743431196277,1.4993,1822.4,1822.3,3.30431]
[1743431196477,2.59695,1822.4,1822.3,2.2066]
[1743431196776,2.59695,1822.4,1822.3,3.30431]
[1743431197178,2.59695,1822.4,1822.3,2.2066]
[1743431198170,2.59695,1822.4,1822.3,3.30431]
[1743431198677,2.59695,1822.4,1822.3,2.2066]
[1743431198878,1.09765,1822.4,1822.3,3.30429]
[1743431199081,1.4452,1822.6,1822.5,1.09759]
[1743431199281,1.09743,1822.8,1822.5,3.2078]
[1743431199577,0.00823068,1822.9,1822.8,1.09741]
[1743431200271,1.09709,1823.4,1823.3,1.09709]
[1743431200473,1.4452,1823.5,1823.4,1.09704]
[1743431200671,0.6977,1823.7,1823.4,1.097]
[1743431200876,1.09704,1823.4,1823.3,3.29217]
[1743431201077,4.92747,1823.7,1823.4,1.09704]
[1743431201078,1.09704,1823.5,1823.4,1.09704]
[1743431201278,1.09687,1823.7,1823.6,1.09689]
[1743431201571,1.09683,1823.8,1823.7,1.09682]
[1743431201774,0.00819239,1823.8,1823.7,1.09682]
[1743431201983,3.2078,1824.3,1824.0,1.09668]
[1743431202177,4.30433,1824.3,1824.1,2.6073]
[1743431202373,4.30433,1824.3,1824.2,1.5107]
[1743431202570,3.2078,1824.3,1824.2,2.60726]
[1743431203080,1.0965,1824.4,1824.2,2.60726]
[1743431203275,1.0965,1824.4,1824.2,1.5107]
[1743431203276,1.09646,1824.4,1824.2,1.5107]
[1743431203475,1.09646,1824.4,1824.2,2.60725]
[1743431203677,1.09641,1824.5,1824.2,1.5107]
[1743431203877,1.09642,1824.5,1824.3,1.09645]
[1743431204073,1.09642,1824.5,1824.4,1.4236]
[1743431204581,5.97,1825.2,1824.4,12.07049]
[1743431204784,1.3905,1825.2,1824.8,3.2078]
[1743431205082,2.48658,1825.0,1824.9,1.4236]
[1743431205280,1.09606,1825.1,1824.9,1.4236]
[1743431205480,1.09608,1825.0,1824.9,1.4236]
[1743431205681,1.09607,1825.1,1824.9,2.51972]
[1743431205876,2.48647,1825.2,1824.9,1.4236]
[1743431206083,2.48647,1825.2,1825.0,1.09604]
[1743431206380,2.48647,1825.2,1825.1,1.4236]
[1743431207379,4.13044,1825.2,1824.8,3.2078]
[1743431207679,1.09614,1824.9,1824.8,3.2078]
[1743431207875,1.0962,1824.8,1824.7,1.4193]
[1743431208181,2.74054,1824.8,1824.3,7.9038]
[1743431208370,1.09639,1824.5,1824.4,1.09642]
[1743431208575,1.09644,1824.4,1824.3,9.3231]
[1743431208875,1.09643,1824.5,1824.3,10.41956]
[1743431209180,3.2078,1825.0,1824.3,9.3231]
[1743431209384,1.0962,1824.8,1824.6,1.09629]
[1743431209571,1.0962,1824.8,1824.7,2.51556]
[1743431209778,3.2078,1825.0,1824.7,1.4193]
[1743431209977,3.2078,1825.0,1824.9,1.09614]
[1743431210178,3.2078,1825.0,1824.7,2.1707]
[1743431210578,1.0961,1825.0,1824.9,1.09614]
[1743431210878,5.94738,1825.5,1825.1,1.09601]
[1743431211183,1.0959,1825.3,1825.2,1.4102]
[1743431211585,1.5108,1825.5,1825.2,2.50616]
[1743431211776,1.0959,1825.3,1825.2,2.50616]
[1743431211977,1.5108,1825.5,1825.2,2.50616]
[1743431212279,7.9018,1825.8,1825.2,4.15004]
[1743431212485,1.09577,1825.6,1825.5,1.09576]
[1743431213076,1.4966,1825.7,1825.3,4.98766]
[1743431213077,1.09584,1825.4,1825.3,4.98766]
[1743431213277,1.09584,1825.4,1825.3,0.684]
[1743431213583,1.09584,1825.4,1825.3,1.7799]
[1743431213782,1.09584,1825.4,1825.3,4.9877]
[1743431213983,2.59243,1825.5,1825.4,1.09584]
[1743431214185,12.01307,1826.0,1825.4,1.3922]
[1743431214389,1.09573,1825.6,1825.5,1.09574]
[1743431214681,1.09578,1825.5,1825.4,5.69583]
[1743431214976,1.09578,1825.5,1825.4,1.3922]
[1743431215186,1.09578,1825.5,1825.4,5.69584]
[1743431215878,2.59235,1825.6,1825.5,1.09578]
[1743431216079,1.09575,1825.6,1825.5,2.46168]
[1743431216386,2.73891,1825.9,1825.5,2.46168]
[1743431216387,1.09568,1825.7,1825.6,1.09566]
[1743431216685,1.09572,1825.6,1825.5,1.3659]
[1743431216886,2.46542,1825.6,1825.5,1.3659]
[1743431217383,2.46542,1825.6,1825.5,2.46168]
[1743431218485,2.46542,1825.6,1825.5,1.3659]
[1743431218690,2.46542,1825.6,1825.2,8.99475]
[1743431218691,1.0959,1825.3,1825.2,8.99475]
[1743431218881,2.73957,1825.5,1825.1,0.00823068]
[1743431218882,1.09596,1825.2,1825.1,0.00823068]
[1743431220387,1.09626,1824.7,1824.6,3.9412]
[1743431220591,1.09626,1824.7,1824.6,5.4436]
[1743431220891,2.74029,1825.0,1824.5,0.54213]
[1743431220892,1.09632,1824.6,1824.5,0.54213]
[1743431221493,2.56582,1824.6,1824.5,0.54213]
[1743431223597,1.09632,1824.6,1824.5,1.63851]
[1743431223890,1.09632,1824.6,1824.5,3.05801]
[1743431224503,1.09632,1824.6,1824.5,1.96163]
[1743431225795,2.49022,1824.6,1824.5,0.54213]
[1743431226593,2.49022,1824.6,1824.1,2.5534]
[1743431226594,2.74111,1824.5,1824.1,1.4568]
[1743431226793,1.09668,1824.0,1823.9,3.2078]
[1743431227093,1.09668,1824.0,1823.9,4.30454]
[1743431227298,1.09668,1824.0,1823.9,3.2078]
[1743431227496,1.09668,1824.0,1823.9,4.30454]
[1743431227791,1.09668,1824.0,1823.9,4.6646]
[1743431228699,0.00823068,1824.7,1824.0,2.74172]
[1743431228998,0.00823068,1824.7,1824.3,1.09646]
[1743431228999,1.09647,1824.4,1824.3,1.09646]
[1743431229500,1.09647,1824.4,1824.3,1.09647]
[1743431229699,1.09656,1824.2,1824.1,1.4696]
[1743431229899,1.09656,1824.2,1824.0,1.80757]
[1743431229900,1.09662,1824.1,1824.0,1.80756]
[1743431230502,1.4096,1824.3,1824.1,1.0966]
[1743431230503,1.09659,1824.2,1824.1,1.0966]
[1743431230696,2.50615,1824.3,1824.2,1.09656]
[1743431230892,1.09656,1824.2,1824.1,3.2078]
[1743431231203,1.09662,1824.1,1824.0,3.9187]
[1743431231594,1.09662,1824.1,1824.0,5.01538]
[1743431231794,1.4096,1824.3,1824.0,3.9187]
[1743431232005,1.09662,1824.1,1824.0,5.01537]
[1743431232205,1.09674,1823.9,1823.8,3.21603068]
[1743431232401,1.09674,1823.9,1823.8,0.00823068]
[1743431232899,2.49024,1823.9,1823.8,0.00823068]
[1743431233401,0.7278,1824.0,1823.8,0.00823068]
[1743431233603,2.74097,1824.5,1823.8,3.21603068]
[1743431233905,1.09653,1824.3,1824.2,1.09656]
[1743431234100,1.3935,1824.4,1824.3,1.0965]
[1743431234300,3.2078,1824.6,1824.3,1.09646]
[1743431234493,1.09643,1824.5,1824.4,1.09644]
[1743431234693,1.09643,1824.5,1824.3,1.09646]
[1743431234898,4.20661068,1824.7,1824.3,1.09646]
[1743431235106,1.09639,1824.5,1824.2,5.94919]
[1743431235301,1.09641,1824.5,1824.4,1.09643]
[1743431235505,1.09638,1824.5,1824.4,4.687]
[1743431235708,1.09638,1824.5,1824.4,5.78344]
[1743431236095,1.09638,1824.5,1824.4,5.78343]
[1743431236294,4.20665068,1824.7,1824.2,7.8938]
[1743431236501,1.0965,1824.3,1824.2,8.99032]
[1743431236900,1.09647,1824.4,1824.3,1.09647]
[1743431237097,1.4577,1824.5,1824.3,1.09647]
[1743431237302,1.4577,1824.5,1824.2,7.8938]
[1743431237504,1.09646,1824.4,1824.3,1.09646]
[1743431237900,2.55413,1824.5,1824.4,1.09644]
[1743431238096,1.10450068,1824.7,1824.4,3.2078]
[1743431238304,1.10450068,1824.7,1824.6,1.09632]
[1743431238502,1.10450068,1824.7,1824.4,3.2078]
[1743431238503,0.00823068,1824.7,1824.4,3.2078]
[1743431238809,0.00823068,1824.7,1824.2,7.42736]
[1743431238810,2.7409,1824.6,1824.2,3.2078]
[1743431239110,1.09649,1824.4,1824.3,1.09649]
[1743431239511,1.09649,1824.4,1824.2,4.30432]
[1743431239713,1.09649,1824.4,1824.3,1.0965]
[1743431239903,0.00823068,1824.7,1824.6,1.09632]
[1743431240306,1.10453068,1824.7,1824.4,3.2078]
[1743431240599,0.00823068,1824.7,1824.4,3.2078]
[1743431240805,0.00823068,1824.7,1824.6,1.09632]
[1743431241111,0.00823068,1824.7,1824.5,1.09633]
[1743431241312,1.09638,1824.5,1824.3,4.685]
[1743431241506,1.47253068,1824.7,1824.3,4.685]
[1743431241706,1.09638,1824.6,1824.5,1.09636]
[1743431241907,0.00823068,1824.7,1824.6,1.09632]
[1743431242108,1.10449068,1824.7,1824.6,1.09632]
[1743431242815,0.00823068,1824.7,1824.6,1.09632]
[1743431243109,1.10449068,1824.7,1824.6,1.09632]
[1743431243303,0.00823068,1824.7,1824.6,1.09632]
[1743431243506,0.00823068,1824.7,1824.6,4.30412]
[1743431244107,1.09607,1825.1,1824.7,2.74063]
[1743431244412,1.09611,1825.0,1824.9,1.09608]
[1743431245309,2.57098068,1825.1,1825.0,1.09608]
[1743431245806,1.47493068,1825.1,1825.0,1.09608]
[1743431246009,0.00823068,1825.1,1825.0,1.09608]
[1743431247009,1.10425068,1825.1,1825.0,1.09608]
[1743431247323,0.00823068,1825.1,1825.0,1.09608]
[1743431248110,0.00823068,1825.1,1825.0,4.30388]
[1743431248311,1.3786,1825.6,1825.5,1.09578]
[1743431248517,0.7106,1825.7,1825.6,1.09572]
[1743431248809,1.80629,1825.7,1825.6,1.09572]
[1743431249212,1.3786,1825.8,1825.7,1.09566]
[1743431249517,1.09563,1825.8,1825.7,1.09562]
[1743431249718,2.55108,1825.9,1825.8,1.0956]
[1743431250020,1.09555,1825.9,1825.8,1.09555]
[1743431250514,2.1661,1826.0,1825.9,1.09554]
[1743431250817,1.09556,1825.9,1825.8,1.09555]
[1743431251007,3.26165,1826.0,1825.9,1.09554]
[1743431252015,3.26165,1826.0,1825.7,8.13878068]
[1743431252016,1.09558,1825.9,1825.8,1.09556]
[1743431252317,1.09559,1825.9,1825.8,1.09557]
[1743431252511,2.47749,1825.9,1825.8,1.09557]
[1743431252708,1.09559,1825.9,1825.8,1.09557]
[1743431252906,1.80613,1826.0,1825.9,1.09554]
[1743431253113,1.09551,1826.0,1825.9,1.09551]
[1743431253614,1.09553,1826.0,1825.9,1.09552]
[1743431253815,2.47736,1826.1,1826.0,1.09548]
[1743431254012,1.09559,1825.9,1825.8,1.09558]
[1743431254807,1.3819,1826.1,1825.8,1.09558]
[1743431255010,1.09548,1826.0,1825.9,2.51324]
[1743431255410,1.09548,1826.0,1825.9,1.4177]
[1743431255917,1.78608,1826.0,1825.9,1.4177]
[1743431256319,1.0956,1825.8,1825.7,0.00823068]
[1743431257217,1.0959,1825.3,1825.2,3.2078]
[1743431257418,1.0959,1825.4,1825.2,1.4352]
[1743431257611,1.3861,1825.7,1825.5,1.09575]
[1743431257919,1.09584,1825.5,1825.4,1.09582]
[1743431258416,1.09584,1825.4,1825.3,1.10409068]
[1743431258827,1.09584,1825.4,1825.3,0.00823068]
[1743431259122,1.09584,1825.4,1825.3,1.10413068]
[1743431259511,2.73916,1825.7,1825.4,1.0958]
[1743431259819,1.09572,1825.6,1825.5,1.5124]
[1743431260020,1.09584,1825.4,1825.3,0.00823068]
[1743431260417,1.09584,1825.4,1825.3,1.10413068]
[1743431260819,1.80171,1825.5,1825.4,1.09584]
[1743431261015,1.80171,1825.5,1825.4,2.60824]
[1743431261320,0.68913068,1825.9,1825.6,1.09568]
[1743431261515,1.09571,1825.7,1825.6,1.09568]
[1743431261919,1.09572,1825.6,1825.5,1.09575]
[1743431262214,1.09584,1825.4,1825.3,1.10412068]
[1743431263110,1.80174,1825.5,1825.4,1.09584]
[1743431263613,1.09584,1825.4,1825.3,1.10412068]
[1743431263818,1.09584,1825.4,1825.3,0.00823068]
[1743431265220,1.09584,1825.4,1825.3,1.10413068]
[1743431265714,5.00954,1825.5,1825.4,1.09584]
[1743431265920,1.80174,1825.5,1825.4,1.09584]
[1743431266716,1.80168,1825.5,1825.4,1.09584]
[1743431266910,0.7059,1825.5,1825.4,1.09584]
[1743431267121,4.675,1825.7,1825.6,1.09572]
[1743431267318,1.09569,1825.7,1825.6,1.09566]
[1743431267518,1.09569,1825.7,1825.4,2.73957]
[1743431267519,1.09576,1825.6,1825.5,1.09574]
[1743431267821,1.09578,1825.5,1825.4,4.30361]
[1743431268022,1.09576,1825.6,1825.5,1.09573]
[1743431268720,1.0957,1825.7,1825.6,1.09567]
[1743431268915,1.10380068,1825.9,1825.8,1.0956]
[1743431269114,1.09564,1825.8,1825.7,1.09561]
[1743431269424,1.09572,1825.6,1825.5,1.85064]
[1743431269622,1.09572,1825.7,1825.6,1.09569]
[1743431270315,1.09565,1825.8,1825.7,1.09562]
[1743431270715,1.09571,1825.7,1825.6,1.09567]
[1743431271021,1.09572,1825.6,1825.5,0.7549]
[1743431271225,1.09572,1825.6,1825.5,1.85068]
[1743431272018,1.0957,1825.7,1825.6,1.09565]
[1743431272527,1.09572,1825.6,1825.5,0.7549]
[1743431272715,1.09572,1825.6,1825.5,1.85068]
[1743431274318,3.2078,1825.8,1825.3,0.00823068]
[1743431274523,1.09584,1825.4,1825.3,1.10413068]
[1743431274925,1.84863,1825.5,1825.4,1.09584]
[1743431275421,4.672,1825.8,1825.6,1.09569]
[1743431275620,0.00823068,1825.9,1825.8,1.0956]
[1743431275820,0.00823068,1825.9,1825.8,4.3034]
[1743431276323,0.00823068,1825.9,1825.8,6.5038]
[1743431276725,0.00823068,1825.9,1825.8,11.1758]
[1743431277130,3.25999,1826.4,1826.0,2.73866]
[1743431277335,3.25999,1826.4,1826.1,1.4662]
[1743431277633,3.25999,1826.4,1826.3,1.0953]
[1743431278328,3.25999,1826.4,1826.2,1.09532]
[1743431278329,1.09532,1826.3,1826.2,1.09532]
[1743431278529,1.09526,1826.4,1826.3,1.09526]
[1743431279026,0.7194,1826.7,1826.5,1.09518]
[1743431279228,1.4805,1826.8,1826.7,1.09506]
[1743431279532,1.4805,1826.8,1826.6,2.56128]
[1743431279725,1.09518,1826.5,1826.4,0.00823068]
[1743431280025,1.09517,1826.6,1826.4,0.00823068]
[1743431280230,1.4805,1826.8,1826.4,1.42673068]
[1743431280428,1.09518,1826.5,1826.4,1.42673068]
[1743431281227,1.09518,1826.5,1826.4,0.00823068]
[1743431281535,1.09518,1826.5,1826.4,1.10347068]
[1743431281732,2.49937,1826.6,1826.5,1.09518]
[1743431281927,3.2078,1827.0,1826.9,1.09494]
[1743431282133,1.09484,1827.1,1827.0,1.09488]
[1743431282436,1.0948,1827.2,1827.1,1.0948]
[1743431282631,2.5637,1827.2,1827.1,1.0948]
[1743431282935,2.56369,1827.2,1827.1,1.09482]
[1743431283135,3.2078,1827.3,1826.9,4.669]
[1743431283337,1.09482,1827.1,1827.0,1.4777]
[1743431283630,1.4689,1827.2,1827.0,2.57258]
[1743431283834,2.56371,1827.2,1827.1,1.09482]
[1743431284032,3.2078,1827.3,1827.0,1.4777]
[1743431284229,1.4689,1827.4,1827.3,1.0947]
[1743431284432,1.4689,1827.4,1827.1,2.73706]
[1743431284633,1.09449,1827.7,1827.3,3.2078]
[1743431284929,1.4689,1827.8,1827.4,4.21429]
[1743431285233,1.4689,1827.8,1827.4,2.1969]
[1743431285535,7.41272,1827.8,1827.4,2.1969]
[1743431285729,2.56335,1827.8,1827.7,1.09446]
[1743431285927,1.4689,1827.8,1827.5,3.2078]
[1743431286129,0.7185,1828.0,1827.7,1.09442]
[1743431286431,1.09434,1827.9,1827.8,1.4431]
[1743431286928,2.52924,1827.9,1827.8,2.5375]
[1743431287233,2.73543,1828.2,1827.8,1.4431]
[1743431287536,2.73588,1827.9,1827.5,8.96834]
[1743431287737,1.09449,1827.7,1827.6,1.09448]
[1743431287938,1.09441,1827.8,1827.7,1.09446]
[1743431288340,1.09443,1827.8,1827.7,1.09443]
[1743431288530,1.09439,1827.9,1827.8,1.09439]
[1743431288931,3.9263,1828.3,1827.6,4.19784]
[1743431289231,8.05582,1828.3,1827.8,1.09436]
[1743431289530,1.09433,1828.0,1827.9,1.4616]
[1743431289932,8.05582,1828.3,1827.9,2.5559]
[1743431290142,8.05582,1828.3,1827.9,3.2895]
[1743431290331,1.09428,1828.0,1827.9,3.2895]
[1743431290937,1.09428,1828.0,1827.9,2.1952]
[1743431293334,2.56488,1828.0,1827.9,2.1952]
[1743431293838,1.09428,1828.0,1827.9,2.1952]
[1743431294143,2.56488,1828.0,1827.9,2.1952]
[1743431294737,1.09446,1827.7,1827.6,4.662]
[1743431294935,1.09446,1827.7,1827.6,6.0722]
[1743431295237,1.09446,1827.7,1827.6,1.4102]
[1743431295831,1.09432,1828.0,1827.8,1.09437]
[1743431296034,1.09432,1828.0,1827.9,1.4102]
[1743431296843,2.48444,1828.1,1827.9,1.4102]
[1743431297039,3.2078,1828.5,1828.0,5.94352]
[1743431297241,1.3902,1828.4,1828.2,1.09416]
[1743431297445,2.48424,1828.4,1828.3,1.4102]
[1743431299544,8.5502,1828.4,1827.3,3.21600793]
[1743431299742,8.5502,1828.4,1827.3,5.95263793]